[Event "1st Jeddah Young Masters 2024"]
[Site "Jeddah"]
[Date "2024.01.25"]
[Round "3.2"]
[White "Rey Martinez, Jaime"]
[Black "Klimkowski, Jan"]
[Result "1/2-1/2"]
[ECO "B90"]
[WhiteElo "2342"]
[BlackElo "2531"]
[Annotator "TA"]
[PlyCount "126"]
[EventDate "2024.01.24"]
[EventType "tourn"]
[SourceTitle "playchess.com"]
[Source "ChessBase"]
[SourceQuality "1"]
[TimeControl "5400+30"]

{[%evp 36,126,16,8,48,0,2,0,0,-35,-26,-6,-2,-52,-53,-54,-15,-25,-21,-20,-14,-29,-41,-29,-35,-34,-3,-33,-3,-25,0,-7,0,0,10,0,0,0,0,0,0,-35,-29,-28,-28,-40,-22,-40,-4,-4,-4,-5,-2,-7,0,0,0,0,0,0,0,-18,-19,-30,-31,-41,0,-27,-20,-20,-11,-11,0,-8,-8,-8,-8,-8,-4,-38,-15,-15,-8,-7,0,0,0,0,0,0,0,0,0]} 1. e4 {[%emt 0:00:08]} c5 {[%emt 0:00:09]} 2. Nf3 {[%emt 0:00:15]} d6 {[%emt 0:00:05]} 3. d4 {[%emt 0:00:07]} cxd4 {[%emt 0:00:07]} 4. Nxd4 {[%emt 0:00:05]} Nf6 {[%emt 0:00:06]} 5. Nc3 {[%emt 0:00:06]} a6 {[%emt 0:00:12]} 6. a4 {[%emt 0:00:25]} e5 {[%emt 0:00:59]} 7. Nf3 {[%emt 0:00:06]} Be7 {[%emt 0:01:49]} 8. Bg5 {[%emt 0:00:43]} Nbd7 {[%emt 0:02:42] B90: Sicilian Najdorf: Unusual White 6th moves, 6 Be3 Ng4 and 6 Be3 e5.} 9. Bc4 {[%emt 0:02:20]} O-O {[%emt 0:00:37]} 10. O-O {[%emt 0:01:26]} h6 {[%emt 0:00:49]} 11. Bh4 {[%emt 0:02:33]} g5 {[%emt 0:05:38]} 12. Bg3 {[%emt 0:00:13]} Nc5 {[%emt 0:00:45]} 13. Qe2 $146 {[%emt 0:04:17]} ({Predecessor:} 13. Nd2 Be6 14. Bxe6 fxe6 15. Qe2 Qe8 16. Rfd1 Qg6 17. f3 Rac8 18. Nc4 Ne8 19. Nb6 {1-0 Perpinya Rofes,L (2389)-Montilla Carrillo,E (2267) Catalunya-ch 2005 (7)}) 13... Kg7 {[%emt 0:09:50]} 14. Rfd1 {[%emt 0:01:00]} Qc7 {[%emt 0:01:04]} 15. Nd5 {[%emt 0:03:30]} Nxd5 {[%emt 0:00:14]} 16. Bxd5 {[%emt 0:00:06]} Bg4 {[%emt 0:01:37]} 17. h3 {[%emt 0:03:21]} Bh5 {[%emt 0:02:29]} 18. a5 {[%emt 0:05:20]} Nd7 {[%emt 0:08:12]} 19. Rd3 {[%emt 0:02:47]} Rac8 {[%emt 0:04:02]} 20. Rc3 {[%emt 0:02:34]} (20. Rb3 $14 {was preferrable.} Nc5 21. Rc3) 20... Qb8 $1 $11 {[%emt 0:00:10]} 21. Rb3 {[%emt 0:00:53]} Rc7 {[%emt 0:01:17]} 22. Rd3 {[%emt 0:04:55]} Nf6 {[%emt 0:02:32]} 23. Bb3 {[%emt 0:02:54]} Rc5 {[%emt 0:01:33]} 24. Re3 {[%emt 0:05:15]} (24. Qe1 $11) 24... Qc7 $15 {[%emt 0:01:18]} 25. Qe1 {[%emt 0:05:52]} Bd8 {[%emt 0:04:35]} 26. Nd2 {[%emt 0:03:50]} Rxa5 {[%emt 0:01:59]} 27. Rxa5 {[%emt 0:00:29]} Qxa5 {[%emt 0:00:05]} 28. Nc4 {[%emt 0:00:05]} Qxe1+ {[%emt 0:02:26]} 29. Rxe1 {[%emt 0:00:03]} Bc7 {[%emt 0:01:26]} 30. f3 {[%emt 0:01:21]} Bg6 {[%emt 0:01:43]} 31. Bf2 {[%emt 0:02:41]} Rd8 {[%emt 0:02:48]} 32. Ne3 {[%emt 0:03:49]} Kf8 {[%emt 0:01:40]} 33. Nd5 {[%emt 0:01:48]} Nxd5 {[%emt 0:00:47]} 34. Bxd5 {[%emt 0:00:04]} b5 {[%emt 0:02:33]} 35. Ra1 {[%emt 0:08:24]} a5 {[%emt 0:00:31]} 36. Be1 {[%emt 0:01:44]} b4 {[%emt 0:10:21]} 37. c3 {[%emt 0:00:42]} Rb8 {[%emt 0:02:07]} 38. Ra4 {[%emt 0:00:42]} bxc3 {[%emt 0:03:33]} 39. Bxc3 {[%emt 0:00:13]} Rb5 {[%emt 0:00:53]} 40. Kf1 {[%emt 0:04:00]} f5 {[%emt 0:03:51]} 41. Rc4 $1 {[%emt 0:03:36]} fxe4 {[%emt 0:02:20]} 42. Bxe4 {[%emt 0:00:35]} Bxe4 {[%emt 0:00:26]} 43. Rxc7 {[%emt 0:00:35]} Bd3+ {[%emt 0:03:37]} 44. Ke1 {[%emt 0:02:40]} a4 {[%emt 0:00:03]} 45. Ra7 {[%emt 0:01:48]} Bc2 {[%emt 0:00:46]} 46. Rd7 {[%emt 0:00:32]} Rb6 {[%emt 0:01:54]} 47. Kd2 {[%emt 0:00:27]} Bb3 {[%emt 0:01:54]} 48. Kc1 {[%emt 0:01:28]} Kg8 {[%emt 0:01:18]} 49. Kd2 {[%emt 0:00:45]} Bc4 {[%emt 0:00:40]} 50. g3 {[%emt 0:02:27]} Bb5 {[%emt 0:06:01]} 51. Rc7 {[%emt 0:01:46]} Bf1 {[%emt 0:00:46]} 52. h4 {[%emt 0:01:47]} gxh4 {[%emt 0:00:07]} 53. gxh4 {[%emt 0:00:05]} Ba6 {[%emt 0:02:17]} 54. f4 {[%emt 0:01:33]} exf4 {[%emt 0:00:36]} 55. Rg7+ {[%emt 0:00:13]} Kf8 {[%emt 0:00:06]} 56. Rg4 {[%emt 0:00:09]} Bb5 {[%emt 0:00:43]} 57. Bg7+ {[%emt 0:03:25]} Kf7 {[%emt 0:00:58]} 58. Bxh6 {[%emt 0:00:38]} f3 {[%emt 0:02:23]} 59. Be3 {[%emt 0:00:45]} Rb8 {[%emt 0:00:06]} 60. Rb4 {[%emt 0:01:05]} ({But not} 60. Rf4+ Ke6 $17) 60... Kg6 {[%emt 0:00:52]} 61. Ke1 {[%emt 0:01:08]} Rb7 {[%emt 0:01:03]} 62. Kf2 {[%emt 0:00:42]} Kh5 {[%emt 0:00:15]} 63. Bd2 {[%emt 0:01:32]} d5 {[%emt 0:00:38]} 1/2-1/2

[Event "1st Jeddah Young Masters 2024"]
[Site "Jeddah"]
[Date "2024.01.25"]
[Round "3.3"]
[White "Sadhwani, Raunak"]
[Black "Francisco Guecamburu, Candela Be"]
[Result "1-0"]
[ECO "C60"]
[WhiteElo "2654"]
[BlackElo "2295"]
[Annotator "TA"]
[PlyCount "71"]
[EventDate "2024.01.24"]
[EventType "tourn"]
[SourceTitle "playchess.com"]
[Source "ChessBase"]
[SourceQuality "1"]
[TimeControl "5400+30"]

{[%evp 9,71,12,44,38,18,29,30,31,28,31,29,29,31,35,33,26,31,46,38,30,38,39,52,42,37,23,22,31,127,99,164,193,195,192,178,188,174,56,51,57,41,8,30,2,133,137,130,134,135,135,247,133,122,0,238,242,333,309,2395,1851,29989,29990,29990,29991]} 1. e4 {[%emt 0:00:04]} e5 {[%emt 0:00:09]} 2. Nf3 {[%emt 0:00:04]} Nc6 {[%emt 0:00:06]} 3. Bb5 {[%emt 0:00:03]} Nge7 {[%emt 0:00:10][%cal Bg8e7,Be7g6,Bg6f4][%mdl 32]} 4. Nc3 {[%emt 0:00:08]} Ng6 {[%emt 0:00:27]} 5. h4 {[%emt 0:00:04][%cal Bh2h4,Bh4h5][%mdl 32]} Nd4 {[%emt 0:01:08]} 6. h5 {[%emt 0:00:21]} Nf4 {[%emt 0:04:37]} 7. Nxd4 {[%emt 0:03:59]} exd4 {[%emt 0:00:17]} 8. Qf3 {[%emt 0:00:12] Weiß hat minimalen Vorteil.} Bd6 {[%emt 0:05:20]} 9. d3 {[%emt 0:00:07]} (9. Ne2 {vereinfacht} Nxe2 10. Bxe2 h6 11. d3) 9... dxc3 {[%emt 0:14:59]} 10. Bxf4 {[%emt 0:00:18]} cxb2 {[%emt 0:00:24]} 11. Rb1 {[%emt 0:00:05]} Bxf4 {[%emt 0:08:47]} 12. Qxf4 {[%emt 0:00:13][%cal Oh5h6]} Qe7 {[%emt 0:00:09]} 13. h6 {[%emt 0:07:28][%mdl 1024] Weiss hat Kompensation.} g6 {[%emt 0:05:15] Droht ...Qb4+ und aus.} 14. O-O {[%emt 0:02:38]} (14. Qxc7 $2 Qb4+ 15. c3 Qxb5 $19) 14... c6 {[%emt 0:02:02]} 15. Bc4 {[%emt 0:00:57][%cal Oc4f7]} d6 {[%emt 0:00:48]} 16. d4 {[%emt 0:06:31]} O-O {[%emt 0:07:38]} 17. Rxb2 {[%emt 0:00:21]} b5 {[%emt 0:07:10]} 18. Bd3 {[%emt 0:02:12]} Be6 {[%emt 0:00:38] Pariert c4.} ({Vorzuziehen ist} 18... f5 $14) 19. d5 {[%emt 0:05:46]} cxd5 {[%emt 0:03:29]} (19... Bd7 $16) 20. Rxb5 {[%emt 0:00:46][%cal Ob5b7]} dxe4 {[%emt 0:07:07] [#]} 21. Rb7 $3 {[%emt 0:00:35][%mdl 512]} Qd8 {[%emt 0:01:14]} (21... Qxb7 22. Qf6 (22. Bxe4 $2 Qb5 $19) (22. Bxe4 $2 Qb5 $19)) 22. Bxe4 {[%emt 0:00:35]} Qa5 {[%emt 0:05:32] Wehrt Bd5 ab} 23. Qxd6 {[%emt 0:07:15]} (23. a4 $1 $18 {Und jetzt Rb5 wäre schön.} Qe5 24. Qxe5 dxe5 25. Re7) 23... Qg5 $14 {[%emt 0:02:03]} 24. Qh2 {[%emt 0:01:22]} Bxa2 {[%emt 0:02:17]} 25. Ra1 {[%emt 0:18:24][%cal Oh2g3]} Rae8 {[%emt 0:04:28]} 26. Bd3 {[%emt 0:00:58][%cal Oc2c4] Zielt auf c4! ab.} (26. Rxa2 $2 Qc1#) ({Doch nicht} 26. Rxa7 Rxe4 27. R7xa2 Rh4 $17) 26... Qd2 {[%emt 0:04:46]} 27. Qh4 $1 $16 {[%emt 0:01:31]} (27. Rxa2 $2 {führt zum Matt.} Re1+ 28. Bf1 Rxf1+ 29. Kxf1 Qd1#) 27... Be6 {[%emt 0:05:52]} 28. Rbxa7 {[%emt 0:01:08] Weiß steht aktiver.} Rb8 {[%emt 0:00:08]} 29. R7a4 {[%emt 0:01:38] Droht stark Rd4.} Rfd8 {[%emt 0:01:06] [#]} (29... Rbd8 $16 30. Ra5 Rfe8) 30. Ra6 {[%emt 0:04:28]} (30. Re4 $1 $18) 30... Re8 {[%emt 0:01:20]} 31. R6a4 {[%emt 0:02:58]} (31. R6a5 $16) 31... Red8 $1 $18 {[%emt 0:00:43] [#]} 32. Re4 $1 $40 {[%emt 0:02:08][%cal Ba4e4,Be4e3,Be3e5][%mdl 160] Weiss geht auf den König.} Ra8 {[%emt 0:04:25]} 33. Rae1 {[%emt 0:01:19] R4e3 ist eine echte Drohung.} Re8 $2 {[%emt 0:00:31]} (33... Rdb8 34. Re5 Qb4) 34. R4e3 {[%emt 0:00:53] Beabsichtigt Qf6 und Matt.} Rac8 {[%emt 0:00:40]} 35. Qf6 {[%emt 0:00:16][%csl Gh6][%cal Rf6g7]} Qc3 {[%emt 0:00:07]} 36. Re5 {[%emt 0:00:05] Gewichteter Fehlerwert: Weiß=0.20 (präzise) /Schwarz=0.37.  Fehler:       	Weiß=3     	Schwarz=5     Ungenau:       	Weiß=2     	Schwarz=2     OK:         	Weiß=13    	Schwarz=14    Bester:       	Weiß=1     	---        Stark:        	Weiß=2     	Schwarz=1     Brilliant:      	Weiß=1     	---} 1-0

[Event "1st Jeddah Young Masters 2024"]
[Site "Jeddah"]
[Date "2024.01.25"]
[Round "3.4"]
[White "Erdogmus, Yagiz Kaan"]
[Black "Pranav Vijay"]
[Result "1/2-1/2"]
[ECO "E32"]
[WhiteElo "2524"]
[BlackElo "2252"]
[Annotator "TA"]
[PlyCount "48"]
[EventDate "2024.01.24"]
[EventType "tourn"]
[SourceTitle "playchess.com"]
[Source "ChessBase"]
[SourceQuality "1"]
[TimeControl "5400+30"]

{[%evp 10,48,1,0,36,14,36,36,31,31,47,41,34,38,31,29,65,65,76,81,79,74,100,87,91,85,106,87,91,110,99,97,89,0,33,0,73,0,41,0,93]} 1. d4 {[%emt 0:00:03]} Nf6 {[%emt 0:00:12]} 2. c4 {[%emt 0:00:09]} e6 {[%emt 0:00:06]} 3. Nc3 {[%emt 0:00:06]} Bb4 {[%emt 0:00:08]} 4. Qc2 {[%emt 0:00:07]} O-O {[%emt 0:00:12]} 5. e4 {[%emt 0:00:12]} d6 {[%emt 0:00:05]} 6. e5 {[%emt 0:00:37]} Nfd7 {[%emt 0:00:54]} 7. exd6 {[%emt 0:01:21]} cxd6 {[%emt 0:00:08]} 8. Bd3 {[%emt 0:01:15]} Nc6 {[%emt 0:00:19] Weiß steht etwas besser.} 9. Nge2 {[%emt 0:01:57]} h6 {[%emt 0:08:28]} 10. O-O {[%emt 0:03:16]} Nf6 {[%emt 0:05:15]} 11. a3 {[%emt 0:11:55]} Bxc3 {[%emt 0:00:51]} 12. Qxc3 {[%emt 0:00:20]} b6 {[%emt 0:00:38]} 13. b4 {[%emt 0:26:13]} Bb7 {[%emt 0:02:47]} 14. Bb2 {[%emt 0:02:08]} Rc8 {[%emt 0:04:02]} 15. Qd2 {[%emt 0:01:28]} Nb8 {[%emt 0:02:05][%cal Bc6b8,Bb8d7,Bd7e5][%mdl 32]} 16. Ng3 {[%emt 0:10:51]} Nbd7 {[%emt 0:03:09]} 17. Rac1 {[%emt 0:01:42]} Rc7 {[%emt 0:09:44]} 18. d5 {[%emt 0:06:53]} Ne5 {[%emt 0:18:00]} 19. dxe6 {[%emt 0:10:30]} fxe6 {[%emt 0:01:53]} 20. Be2 {[%emt 0:03:53]} Ng6 {[%emt 0:01:10]} 21. Bd3 {[%emt 0:02:56]} (21. f3 $16) 21... Ne5 $14 {[%emt 0:01:45]} 22. Be2 {[%emt 0:00:51] Das Läuferpaar ist gut.} Ng6 $1 {[%emt 0:01:22]} 23. Bd3 {[%emt 0:03:44] Wehrt d5 ab} Ne5 {[%emt 0:10:38]} 24. Be2 {[%emt 0:00:21]} (24. f3 $14) 24... Ng6 $1 {[%emt 0:01:56] Gewichteter Fehlerwert: Weiß=0.16 (sehr präzise) /Schwarz=0.10 (sehr präzise) .  Fehler:       	Weiß=2     	---        Ungenau:       	Weiß=1     	Schwarz=2     OK:         	Weiß=9     	Schwarz=6     Bester:       	Weiß=1     	Schwarz=1     Stark:        	---       	Schwarz=2} 1/2-1/2

[Event "1st Jeddah Young Masters 2024"]
[Site "Jeddah"]
[Date "2024.01.25"]
[Round "3.5"]
[White "Woodward, Andy"]
[Black "Oro, Faustino"]
[Result "1-0"]
[ECO "E06"]
[WhiteElo "2501"]
[BlackElo "2357"]
[Annotator "TA"]
[PlyCount "69"]
[EventDate "2024.01.24"]
[EventType "tourn"]
[SourceTitle "playchess.com"]
[Source "ChessBase"]
[SourceQuality "1"]
[TimeControl "5400+30"]

{[%evp 10,69,22,0,31,22,19,8,29,36,25,20,32,24,28,33,28,27,35,16,25,24,31,26,56,45,74,40,53,18,66,62,102,120,218,208,208,215,230,234,218,239,245,235,225,230,249,204,206,195,279,250,384,403,397,362,347,354,339,320,333,351]} 1. d4 {[%emt 0:00:05]} Nf6 {[%emt 0:00:07]} 2. c4 {[%emt 0:00:07]} e6 {[%emt 0:00:06]} 3. g3 {[%emt 0:00:11]} d5 {[%emt 0:00:06]} 4. Bg2 {[%emt 0:00:12]} Be7 {[%emt 0:00:02]} 5. Nf3 {[%emt 0:00:13]} O-O {[%emt 0:00:12]} 6. Nc3 {[%emt 0:00:06]} a5 {[%emt 0:00:28]} 7. O-O {[%emt 0:01:14]} c6 {[%emt 0:00:15]} 8. Bf4 {[%emt 0:03:02]} Nbd7 {[%emt 0:05:06][%cal Bb8d7,Bd7f6,Bf6d5][%mdl 32] Die Stellung ist ausgeglichen.} 9. Ne5 {[%emt 0:10:39]} dxc4 {[%emt 0:13:10]} 10. Nxc4 {[%emt 0:02:34]} Nd5 {[%emt 0:00:22]} 11. Rc1 {[%emt 0:10:37]} Nxf4 {[%emt 0:08:47]} 12. gxf4 {[%emt 0:00:13]} Nf6 {[%emt 0:00:15]} 13. e3 {[%emt 0:02:27]} Nd5 {[%emt 0:01:44]} 14. Ne5 {[%emt 0:06:38]} f6 {[%emt 0:13:14]} 15. Nd3 {[%emt 0:00:44]} Bd7 {[%emt 0:03:14]} 16. Qb3 {[%emt 0:08:04]} b6 {[%emt 0:06:12] [#]} 17. f5 $1 {[%emt 0:07:02]} Nxc3 {[%emt 0:00:56]} (17... Kh8 18. fxe6) 18. Rxc3 {[%emt 0:01:01][%cal Oa2a4]} a4 {[%emt 0:00:17]} 19. Qc2 {[%emt 0:00:27]} exf5 {[%emt 0:01:15]} (19... e5 $11) 20. Bxc6 $14 {[%emt 0:00:17] Weiß steht aktiver.} Bxc6 {[%emt 0:03:34] Jetzt gehts bergab für Schwarz.} 21. Rxc6 {[%emt 0:00:04]} Bd6 {[%emt 0:01:12] [#]} (21... Qd5 $16) 22. Qc4+ $1 $18 {[%emt 0:00:30]} Kh8 {[%emt 0:00:16]} 23. Qe6 {[%emt 0:00:07][%csl LRd6,LRf5] Lässt Qd7 nicht zu} Bb8 {[%emt 0:01:23][%cal Of5f4] [#]} 24. Rfc1 $1 {[%emt 0:01:02]} ({Schwächer ist} 24. Rxb6 f4 $14) ({Auf keinen Fall} 24. Qxf5 $6 Ra5 25. Qf3 Qe8 $16) 24... Re8 {[%emt 0:00:46]} 25. Qxf5 {[%emt 0:10:25]} Ra5 {[%emt 0:00:34][%cal Ba8a5,Ba5g5,Bg5g4][%mdl 32]} 26. Qc8 {[%emt 0:05:57]} Rg5+ {[%emt 0:03:04]} 27. Kf1 {[%emt 0:00:03] Und jetzt Qb7 wäre schön.} Bxh2 {[%emt 0:01:35]} 28. Qxd8 {[%emt 0:00:17]} Rxd8 {[%emt 0:00:00]} 29. Rxb6 {[%emt 0:00:40]} h5 {[%emt 0:01:04]} (29... Rg1+ $142 30. Ke2 Rxc1 31. Nxc1 a3 32. bxa3 Rc8) 30. Ke2 {[%emt 0:00:18]} Bd6 {[%emt 0:00:37]} (30... Ra5 $142 31. Nc5 Rb8 32. Rxb8+ Bxb8) 31. Nc5 {[%emt 0:01:24]} Rg4 {[%emt 0:06:16]} 32. Nb7 {[%emt 0:00:36]} Rb8 {[%emt 0:00:09]} 33. Rb5 {[%emt 0:00:04]} Bf8 {[%emt 0:02:26]} 34. Rxh5+ {[%emt 0:00:14]} Kg8 {[%emt 0:00:01]} 35. Rb5 {[%emt 0:00:15] Gewichteter Fehlerwert: Weiß=0.08 (makellos) /Schwarz=0.20 (präzise) .  Fehler:       	---       	Schwarz=4     Ungenau:       	Weiß=2     	Schwarz=3     OK:         	Weiß=16    	Schwarz=8     Bester:       	Weiß=2     	Schwarz=2     Stark:        	Weiß=1     	---} 1-0

[Event "1st Jeddah Young Masters 2024"]
[Site "Jeddah"]
[Date "2024.01.26"]
[Round "4.1"]
[White "Murzin, Volodar"]
[Black "Oro, Faustino"]
[Result "1/2-1/2"]
[ECO "D00"]
[WhiteElo "2635"]
[BlackElo "2357"]
[Annotator "TA"]
[PlyCount "100"]
[EventDate "2024.01.24"]
[EventType "tourn"]
[SourceTitle "playchess.com"]
[Source "ChessBase"]
[SourceQuality "1"]
[TimeControl "5400+30"]

{[%evp 14,100,0,4,12,7,19,4,12,14,21,27,33,20,26,21,37,15,37,17,19,16,8,0,43,47,45,47,89,66,103,104,126,8,25,16,20,15,19,7,15,17,16,0,0,0,0,0,0,0,0,0,0,0,35,27,27,12,13,13,13,12,12,12,12,0,0,0,0,0,0,0,52,0,0,0,0,0,0,0,0,0,0,0,0,0,0,0,0]} 1. d4 {[%emt 0:00:03]} Nf6 {[%emt 0:00:10]} 2. Bg5 {[%emt 0:00:07]} d5 {[%emt 0:01:36]} 3. Nd2 {[%emt 0:00:12]} g6 {[%emt 0:02:33]} 4. Bxf6 {[%emt 0:01:43]} exf6 {[%emt 0:00:02]} 5. e3 {[%emt 0:00:06]} Bd6 {[%emt 0:02:31]} 6. g3 {[%emt 0:09:28]} O-O {[%emt 0:00:57]} 7. Bg2 {[%emt 0:00:07]} c6 {[%emt 0:00:18]} 8. Ne2 {[%emt 0:00:50]} Nd7 {[%emt 0:02:14]} 9. O-O {[%emt 0:01:10]} f5 {[%emt 0:01:37]} 10. c4 {[%emt 0:00:13]} Nf6 {[%emt 0:06:46]} 11. cxd5 {[%emt 0:09:26]} Nxd5 {[%emt 0:00:18]} 12. Bxd5 {[%emt 0:00:39]} cxd5 {[%emt 0:00:11]} 13. Qb3 {[%emt 0:04:13]} Be6 {[%emt 0:02:29]} 14. Nc3 {[%emt 0:00:24]} Qa5 {[%emt 0:04:10]} 15. Nf3 {[%emt 0:05:13][%cal Bd2f3,Bf3e1,Be1d3][%mdl 32]} (15. Qxb7 {looks sharper.} Rab8 16. Qc6 Rxb2 17. Nb3) 15... h6 {[%emt 0:16:25]} 16. Ne1 {[%emt 0:02:31]} Rfc8 {[%emt 0:04:00]} 17. Nd3 {[%emt 0:02:20][%cal Ob3b5]} Rc4 {[%emt 0:06:59]} 18. Qb5 {[%emt 0:14:59]} (18. Qxb7 $2 Rb8 $19) 18... Qxb5 {[%emt 0:09:15]} 19. Nxb5 {[%emt 0:00:11] Excellent horsemanship.} Be7 {[%emt 0:05:31]} 20. b3 {[%emt 0:05:38]} Rc2 {[%emt 0:01:21] [#] Hoping for ...a6.} 21. Rfc1 {[%emt 0:00:33]} Rxc1+ {[%emt 0:00:14]} 22. Rxc1 {[%emt 0:00:13]} a6 {[%emt 0:00:19]} 23. Nc3 {[%emt 0:01:49]} ({White has to play} 23. Nc7 $16 Rc8 24. Rc3 (24. Nxe6 Rxc1+ 25. Nxc1 fxe6 $11)) 23... Ba3 $11 {[%emt 0:03:35]} 24. Rc2 {[%emt 0:00:47]} Rc8 {[%emt 0:00:45][%cal Of5f4]} 25. Ne1 {[%emt 0:00:14][%cal Oc3d5]} Bd6 {[%emt 0:02:53][%cal Of5f4]} (25... Bb4 26. Nxd5 Rxc2 (26... Bxe1 $2 {too greedy.} 27. Ne7+ Kg7 28. Nxc8 $18) 27. Nxc2 $14) 26. Na4 {[%emt 0:01:44]} Rxc2 {[%emt 0:01:40]} 27. Nxc2 {[%emt 0:00:02][%mdl 4096] Endgame. KBB-KNN} a5 {[%emt 0:02:06]} 28. Nc3 {[%emt 0:00:54]} Kf8 {[%emt 0:02:47]} 29. Kf1 {[%emt 0:00:37]} Ke8 {[%emt 0:01:23]} 30. Ke2 {[%emt 0:00:27]} Kd7 {[%emt 0:00:09]} 31. Ne1 {[%emt 0:00:26]} g5 {[%emt 0:02:12]} 32. Nd3 {[%emt 0:00:22]} b6 {[%emt 0:02:17]} 33. Nb5 {[%emt 0:00:50]} f6 {[%emt 0:01:26]} 34. Nxd6 {[%emt 0:02:51]} Kxd6 $14 {[%emt 0:00:11] KB-KN} 35. f4 {[%emt 0:00:14]} g4 {[%emt 0:01:53]} 36. Kd2 {[%emt 0:01:31]} Bd7 {[%emt 0:01:42]} 37. Nb2 {[%emt 0:00:21]} Bb5 {[%emt 0:02:09]} 38. Kc3 {[%emt 0:02:03]} Kd7 {[%emt 0:02:19]} 39. b4 {[%emt 0:00:51]} a4 {[%emt 0:02:53]} 40. a3 {[%emt 0:00:18]} Kc6 {[%emt 0:01:01]} 41. Kd2 {[%emt 0:00:11]} Kd6 {[%emt 0:00:21]} 42. Nd1 {[%emt 0:00:17]} Bd7 {[%emt 0:00:52] [#]} (42... Bc4 $11) 43. b5 {[%emt 0:15:46]} Bxb5 $11 {[%emt 0:00:45] The position is equal.} 44. Nb2 {[%emt 0:00:09]} Kc6 {[%emt 0:02:45]} 45. Kc2 {[%emt 0:00:20]} Bf1 {[%emt 0:02:00]} 46. Nxa4 {[%emt 0:00:11]} Kb5 {[%emt 0:00:14]} 47. Nc3+ {[%emt 0:00:28]} Kc4 {[%emt 0:00:40]} 48. Na4 {[%emt 0:00:10]} Kb5 {[%emt 0:00:10]} 49. Nc3+ {[%emt 0:00:12]} Kc4 {[%emt 0:00:07]} 50. Na4 {[%emt 0:00:09]} Kb5 {[%emt 0:00:05] Weighted Error Value: White=0.10 (very precise) /Black=0.10 (very precise) .  Mistake:       	White=2     	Black=1      Inaccurate:     	---       	Black=4      OK:         	White=18    	Black=20     Best:        	White=2     	Black=3} 1/2-1/2